[Event "Marshall CC FIDE Premier November 2024"]
[Site "New York"]
[Date "2024.11.02"]
[Round "2.7"]
[White "Muthukumaran, Gurru"]
[Black "Bonin, Jay"]
[Result "1/2-1/2"]
[ECO "B11"]
[WhiteElo "1859"]
[BlackElo "2127"]
[Annotator "RC"]
[PlyCount "128"]
[EventDate "2024.11.01"]
[EventType "swiss"]
[EventCountry "USA"]
[SourceTitle "playchess.com"]
[Source "ChessBase"]
[SourceQuality "1"]
[TimeControl "5400+30"]

1. e4 {[%emt 0:00:02]} c6 {[%emt 0:00:05]} 2. Nc3 {[%emt 0:00:06]} a6 {[%emt 0:00:05]} 3. Nf3 {[%emt 0:00:27]} d5 {[%emt 0:00:06]} 4. h3 {[%emt 0:00:48]} e6 {[%emt 0:02:09]} 5. d4 {[%emt 1:31:37]} Bb4 {[%emt 0:00:25]} 6. exd5 {[%emt 0:04:00]} exd5 {[%emt 0:01:55]} 7. Bd3 {[%emt 0:01:23]} Ne7 {[%emt 0:00:12]} 8. O-O {[%emt 0:00:50]} Bf5 {[%emt 0:00:18]} 9. Bxf5 {[%emt 0:01:31]} Nxf5 {[%emt 0:00:03]} 10. Re1+ {[%emt 0:00:44]} Ne7 {[%emt 0:00:18]} 11. Bf4 {[%emt 0:06:03]} O-O {[%emt 1:30:24]} 12. Qd3 {[%emt 0:01:14]} Ng6 {[%emt 0:01:32]} 13. Bg3 {[%emt 0:01:41]} Nd7 {[%emt 0:00:35]} 14. a3 {[%emt 0:06:01]} Be7 {[%emt 0:04:00]} 15. Ne2 {[%emt 0:05:25]} Nf6 {[%emt 0:05:54]} 16. Nd2 {[%emt 0:04:23]} Re8 {[%emt 0:05:59]} 17. Nf4 {[%emt 0:03:27]} Qd7 {[%emt 0:03:28]} 18. Nxg6 {[%emt 0:04:01]} hxg6 {[%emt 0:00:13]} 19. Re2 {[%emt 0:01:36]} Bf8 {[%emt 0:05:04]} 20. Be5 {[%emt 0:04:22]} Nh7 {[%emt 0:01:30]} 21. Rae1 {[%emt 0:01:39]} Re6 {[%emt 0:02:00]} 22. Nf3 {[%emt 0:11:52]} Rae8 {[%emt 0:01:01]} 23. Kf1 {[%emt 0:01:50]} Qe7 {[%emt 0:04:40]} 24. Bg3 {[%emt 0:02:53]} Rxe2 {[%emt 0:01:18]} 25. Rxe2 {[%emt 0:00:08]} Qxe2+ {[%emt 0:00:04]} 26. Qxe2 {[%emt 0:00:10]} Rxe2 {[%emt 0:00:02]} 27. Kxe2 {[%emt 0:00:09]} f6 {[%emt 0:01:22]} 28. Nd2 {[%emt 0:00:39]} Ng5 {[%emt 0:02:16]} 29. Nb3 {[%emt 0:01:35]} Ne6 {[%emt 0:03:23]} 30. Kd3 {[%emt 0:01:43]} b6 {[%emt 0:01:40]} 31. c4 {[%emt 0:02:59]} dxc4+ {[%emt 0:01:42]} 32. Kxc4 {[%emt 0:00:03]} Kf7 {[%emt 0:02:52]} 33. Nd2 {[%emt 0:31:18]} Ke8 {[%emt 0:03:30]} 34. Ne4 {[%emt 0:04:47]} Kd7 {[%emt 0:04:57]} 35. Nc3 {[%emt 0:01:58]} Bd6 {[%emt 0:06:50]} 36. Bxd6 {[%emt 0:03:39]} Kxd6 {[%emt 0:01:08]} 37. Ne4+ {[%emt 0:00:11]} Kd7 {[%emt 0:00:38]} 38. g3 {[%emt 0:01:12]} f5 {[%emt 0:01:29]} 39. Nc3 {[%emt 0:17:09]} Ng5 {[%emt 0:02:44]} 40. h4 {[%emt 0:00:22]} Nh3 {[%emt 0:07:33]} 41. Nd1 {[%emt 0:00:33]} g5 {[%emt 0:02:07]} 42. hxg5 {[%emt 0:02:35]} Nxg5 {[%emt 0:00:06]} 43. b4 {[%emt 0:02:53]} Ne4 {[%emt 0:02:25]} 44. Kd3 {[%emt 0:01:03]} Nd6 {[%emt 0:01:07]} 45. a4 {[%emt 0:02:26]} g5 {[%emt 0:01:22]} 46. Ne3 {[%emt 0:00:47]} Ke6 {[%emt 0:01:00]} 47. f3 {[%emt 0:01:43]} b5 {[%emt 0:03:47]} 48. a5 {[%emt 0:00:54]} Nc8 {[%emt 0:05:16]} 49. g4 {[%emt 0:01:47]} fxg4 {[%emt 0:03:19]} 50. fxg4 {[%emt 0:01:00]} Ne7 {[%emt 0:01:03]} 51. Ke4 {[%emt 0:00:33]} Ng8 {[%emt 0:00:23]} 52. d5+ {[%emt 0:00:45]} cxd5+ {[%emt 0:00:11]} 53. Nxd5 {[%emt 0:00:05]} Nh6 {[%emt 0:00:10]} 54. Nc7+ {[%emt 0:01:05]} Kd6 {[%emt 0:00:42]} 55. Nxa6 {[%emt 0:00:16]} Nxg4 {[%emt 0:00:05]} 56. Kf5 {[%emt 0:00:47]} Ne3+ {[%emt 0:02:35]} 57. Kxg5 {[%emt 0:00:12]} Nc2 {[%emt 0:00:11]} 58. Kf4 {[%emt 0:00:26]} Kc6 {[%emt 0:00:26]} 59. Ke4 {[%emt 0:00:36]} Kb7 {[%emt 0:00:07]} 60. Nc5+ {[%emt 0:00:08]} Ka7 {[%emt 0:00:08]} 61. Nd3 {[%emt 0:00:26]} Ka6 {[%emt 0:00:03]} 62. Nc5+ {[%emt 0:00:41]} Ka7 {[%emt 0:00:07]} 63. Nd3 {[%emt 0:02:03]} Ka6 {[%emt 0:00:05]} 64. Kd5 {[%emt 0:00:59]} Nxb4+ {[%emt 0:00:07]} 1/2-1/2

[Event "Marshall CC FIDE Premier November 2024"]
[Site "New York"]
[Date "2024.11.02"]
[Round "2.8"]
[White "Gartenlaub, Corin"]
[Black "Yang, Daniel"]
[Result "1-0"]
[ECO "B55"]
[WhiteElo "1895"]
[BlackElo "2101"]
[Annotator "RC"]
[PlyCount "125"]
[EventDate "2024.11.01"]
[EventType "swiss"]
[EventCountry "USA"]
[SourceTitle "playchess.com"]
[Source "ChessBase"]
[SourceQuality "1"]
[TimeControl "5400+30"]

1. e4 {[%emt 0:00:01]} c5 {[%emt 0:00:07]} 2. Nf3 {[%emt 0:00:02]} d6 {[%emt 0:00:07]} 3. d4 {[%emt 0:00:02]} cxd4 {[%emt 0:00:06]} 4. Nxd4 {[%emt 0:00:03]} Nf6 {[%emt 0:00:08]} 5. f3 {[%emt 0:00:02]} e5 {[%emt 0:00:23]} 6. Nb3 {[%emt 0:01:10]} Be7 {[%emt 0:00:15]} 7. c4 {[%emt 0:00:04]} a5 {[%emt 0:00:32]} 8. Be3 {[%emt 0:01:49]} a4 {[%emt 0:00:16]} 9. N3d2 {[%emt 0:03:54]} Nfd7 {[%emt 0:01:00]} 10. Nc3 {[%emt 0:01:11]} Nc5 {[%emt 0:04:09]} 11. b4 {[%emt 0:01:15]} axb3 {[%emt 0:02:05]} 12. Nxb3 {[%emt 0:01:52]} Nxb3 {[%emt 0:07:30]} 13. axb3 {[%emt 0:00:19]} Rxa1 {[%emt 0:00:26]} 14. Qxa1 {[%emt 0:00:04]} O-O {[%emt 0:04:53]} 15. Be2 {[%emt 0:08:07]} Bg5 {[%emt 0:02:48]} 16. Bf2 {[%emt 0:00:56]} Nc6 {[%emt 0:02:43]} 17. O-O {[%emt 0:02:34]} Nd4 {[%emt 0:02:34]} 18. Bd1 {[%emt 0:00:52]} f5 {[%emt 0:02:59]} 19. Qa7 {[%emt 0:03:27]} Nc6 {[%emt 0:05:13]} 20. Qb6 {[%emt 0:11:32]} Qe8 {[%emt 0:00:49]} 21. exf5 {[%emt 0:14:40]} Rxf5 {[%emt 0:09:52]} 22. Bc2 {[%emt 0:00:40]} Rf7 {[%emt 0:04:43]} 23. Be4 {[%emt 0:03:33]} Be6 {[%emt 0:05:27]} 24. Nb5 {[%emt 0:05:05]} Bd8 {[%emt 0:05:30]} 25. Qe3 {[%emt 0:00:26]} Rd7 {[%emt 0:02:58]} 26. Rd1 {[%emt 0:03:07]} Be7 {[%emt 0:02:23]} 27. Qd3 {[%emt 0:05:31]} g6 {[%emt 0:00:16]} 28. Bb6 {[%emt 0:03:21]} Qf7 {[%emt 0:02:06]} 29. Nc7 {[%emt 0:10:08]} Kg7 {[%emt 0:08:57]} 30. Bd5 {[%emt 0:01:24]} Nd8 {[%emt 0:06:46]} 31. Nxe6+ {[%emt 0:02:10]} Nxe6 {[%emt 0:00:06]} 32. Qe4 {[%emt 0:01:08]} Bd8 {[%emt 0:03:00]} 33. Bxd8 {[%emt 0:00:23]} Rxd8 {[%emt 0:00:00]} 34. Bxe6 {[%emt 0:00:17]} Qxe6 {[%emt 0:00:03]} 35. Qxb7+ {[%emt 0:00:05]} Rd7 {[%emt 0:04:22]} 36. Qd5 {[%emt 0:02:52]} Qxd5 {[%emt 0:00:34]} 37. Rxd5 {[%emt 0:00:10]} Rb7 {[%emt 0:01:50]} 38. Rd3 {[%emt 0:02:38]} Rb6 {[%emt 0:01:11]} 39. Kf2 {[%emt 0:00:06]} Kf6 {[%emt 0:00:09]} 40. Ke3 {[%emt 0:00:04]} Ke6 {[%emt 0:00:20]} 41. Kd2 {[%emt 0:01:12]} Ra6 {[%emt 0:00:29]} 42. Kc3 {[%emt 0:00:07]} Ra7 {[%emt 0:02:26]} 43. Rd2 {[%emt 0:00:18]} h5 {[%emt 0:01:17]} 44. b4 {[%emt 0:01:20]} g5 {[%emt 0:08:42]} 45. h3 {[%emt 0:00:54]} g4 {[%emt 0:01:01]} 46. hxg4 {[%emt 0:00:04]} hxg4 {[%emt 0:00:05]} 47. fxg4 {[%emt 0:00:20]} Ra3+ {[%emt 0:01:14]} 48. Kb2 {[%emt 0:00:21]} Rg3 {[%emt 0:00:06]} 49. b5 {[%emt 0:13:20]} Rxg4 {[%emt 0:00:12]} 50. Kc3 {[%emt 0:00:07]} Rg7 {[%emt 0:01:09]} 51. Kb4 {[%emt 0:01:03]} Rf7 {[%emt 0:03:21]} 52. b6 {[%emt 0:00:47]} e4 {[%emt 0:01:08]} 53. Kb5 {[%emt 0:00:50]} Rf5+ {[%emt 0:01:12]} 54. Ka6 {[%emt 0:00:11]} Kd7 {[%emt 0:00:58]} 55. b7 {[%emt 0:03:19]} Kc7 {[%emt 0:02:28]} 56. Rxd6 {[%emt 0:00:38]} Rc5 {[%emt 0:00:43]} 57. Rh6 {[%emt 0:00:53]} Rxc4 {[%emt 0:00:29]} 58. Rh7+ {[%emt 0:00:54]} Kc6 {[%emt 0:00:08]} 59. Ka7 {[%emt 0:02:41]} Ra4+ {[%emt 0:00:48]} 60. Kb8 {[%emt 0:00:03]} Kb6 {[%emt 0:00:35]} 61. Rh6+ {[%emt 0:00:25]} Ka5 {[%emt 0:00:23]} 62. Kc7 {[%emt 0:00:20]} Rc4+ {[%emt 0:00:15]} 63. Rc6 {[%emt 0:00:06]} 1-0

[Event "Marshall CC FIDE Premier November 2024"]
[Site "New York"]
[Date "2024.11.02"]
[Round "2.9"]
[White "Levine, Owen"]
[Black "Miller, Rachel"]
[Result "1-0"]
[ECO "C54"]
[WhiteElo "1998"]
[BlackElo "1935"]
[Annotator "RC"]
[PlyCount "69"]
[EventDate "2024.11.01"]
[EventType "swiss"]
[EventCountry "USA"]
[SourceTitle "playchess.com"]
[Source "ChessBase"]
[SourceQuality "1"]
[TimeControl "5400+30"]

1. e4 {[%emt 0:00:03]} e5 {[%emt 0:01:47]} 2. Nf3 {[%emt 0:00:12]} Nc6 {[%emt 0:00:09]} 3. Bc4 {[%emt 0:00:08]} Bc5 {[%emt 0:00:12]} 4. c3 {[%emt 0:00:08]} Nf6 {[%emt 0:00:06]} 5. d3 {[%emt 0:00:10]} d6 {[%emt 0:00:12]} 6. O-O {[%emt 0:00:16]} a5 {[%emt 0:00:40]} 7. a4 {[%emt 0:00:15]} Ba7 {[%emt 0:00:42]} 8. Re1 {[%emt 0:01:16]} h6 {[%emt 0:05:01]} 9. h3 {[%emt 0:03:14]} O-O {[%emt 0:00:43]} 10. Nbd2 {[%emt 0:05:41]} Be6 {[%emt 0:02:33]} 11. Bxe6 {[%emt 0:00:07]} fxe6 {[%emt 0:00:05]} 12. Nf1 {[%emt 0:00:06]} Qe8 {[%emt 0:01:57]} 13. Be3 {[%emt 0:00:46]} Bxe3 {[%emt 0:18:22]} 14. Rxe3 {[%emt 0:00:09]} Rd8 {[%emt 0:15:50]} 15. Qb3 {[%emt 0:04:07]} Rf7 {[%emt 0:05:33]} 16. Rc1 {[%emt 0:11:19]} b6 {[%emt 0:07:35]} 17. Ng3 {[%emt 0:15:11]} Qd7 {[%emt 0:16:02]} 18. Rce1 {[%emt 0:18:28]} Rdf8 {[%emt 0:01:04]} 19. d4 {[%emt 0:01:23]} exd4 {[%emt 0:05:17]} 20. cxd4 {[%emt 0:00:16]} e5 {[%emt 0:00:27]} 21. dxe5 {[%emt 0:01:42]} Nxe5 {[%emt 0:00:27]} 22. Nd4 {[%emt 0:04:39]} Nc6 {[%emt 0:01:22]} 23. Ngf5 {[%emt 0:03:38]} Nxd4 {[%emt 0:01:11]} 24. Nxd4 {[%emt 0:00:02]} Kh7 {[%emt 0:04:59]} 25. Rc1 {[%emt 0:01:58]} Re8 {[%emt 0:03:06]} 26. Nb5 {[%emt 0:02:41]} Qe6 {[%emt 0:05:52]} 27. Qd3 {[%emt 0:08:59]} Qe5 {[%emt 0:00:58]} 28. Nxc7 {[%emt 0:02:00]} Rc8 {[%emt 0:01:01]} 29. f4 {[%emt 0:00:09]} Qxf4 {[%emt 0:00:40]} 30. e5+ {[%emt 0:00:06]} g6 {[%emt 0:00:48]} 31. Rf1 {[%emt 0:01:20]} Qb4 {[%emt 0:00:24]} 32. Nd5 {[%emt 0:00:45]} Nxd5 {[%emt 0:00:44]} 33. Rxf7+ {[%emt 0:00:06]} Kh8 {[%emt 0:00:07]} 34. Qxg6 {[%emt 0:00:55]} Rc1+ {[%emt 0:00:42]} 35. Kh2 {[%emt 0:00:01]} 1-0

[Event "Marshall CC FIDE Premier November 2024"]
[Site "New York"]
[Date "2024.11.02"]
[Round "2.10"]
[White "Yang, Lucas"]
[Black "Ayyappan, Santhosh"]
[Result "0-1"]
[ECO "D36"]
[WhiteElo "1800"]
[BlackElo "1933"]
[Annotator "RC"]
[PlyCount "54"]
[EventDate "2024.11.01"]
[EventType "swiss"]
[EventCountry "USA"]
[SourceTitle "playchess.com"]
[Source "ChessBase"]
[SourceQuality "1"]
[TimeControl "5400+30"]

1. d4 {[%emt 1:31:00]} d5 {[%emt 0:06:40]} 2. c4 {[%emt 0:00:00]} e6 {[%emt 0:00:35]} 3. Nc3 {[%emt 0:00:00]} Nf6 {[%emt 0:00:07]} 4. cxd5 {[%emt 0:00:00]} exd5 {[%emt 0:00:06]} 5. Bg5 {[%emt 0:00:00]} Be7 {[%emt 0:00:06]} 6. e3 {[%emt 0:00:00]} c6 {[%emt 0:00:04]} 7. Bd3 {[%emt 0:00:00]} O-O {[%emt 0:00:06]} 8. Qc2 {[%emt 0:00:00]} Nbd7 {[%emt 0:00:05]} 9. Nf3 {[%emt 0:00:00]} Re8 {[%emt 0:00:10]} 10. h3 {[%emt 0:00:00]} Nf8 {[%emt 0:00:04]} 11. Bf4 {[%emt 0:00:00]} a6 {[%emt 0:01:54]} 12. g4 {[%emt 0:00:00]} c5 {[%emt 0:02:28]} 13. O-O-O {[%emt 0:00:00]} c4 {[%emt 0:01:06]} 14. Bf5 {[%emt 0:00:00]} Bb4 {[%emt 0:02:09]} 15. Ne2 {[%emt 0:00:00]} Bxf5 {[%emt 0:10:12]} 16. gxf5 {[%emt 0:07:30]} c3 {[%emt 0:09:34]} 17. bxc3 {[%emt 0:00:00]} Ne4 {[%emt 0:03:45]} 18. cxb4 {[%emt 0:00:00]} Rc8 {[%emt 0:00:08]} 19. Rhf1 {[%emt 0:00:00]} Qb6 {[%emt 0:01:10]} 20. a3 {[%emt 0:00:00]} Rxc2+ {[%emt 0:00:16]} 21. Kxc2 {[%emt 0:00:00]} Rc8+ {[%emt 0:00:09]} 22. Kb2 {[%emt 0:00:00]} a5 {[%emt 0:00:48]} 23. Rc1 {[%emt 0:00:00]} Ra8 {[%emt 0:00:28]} 24. Bc7 {[%emt 0:00:00]} Qb5 {[%emt 0:00:15]} 25. Nc3 {[%emt 0:00:00]} Nxc3 {[%emt 0:00:08]} 26. Kxc3 {[%emt 0:00:00]} axb4+ {[%emt 0:00:04]} 27. axb4 {[%emt 0:00:00]} Qc4+ {[%emt 0:00:07]} 0-1

[Event "Marshall CC FIDE Premier November 2024"]
[Site "New York"]
[Date "2024.11.03"]
[Round "3.1"]
[White "Paragua, Megan Althea"]
[Black "Hebbar, Eshaan"]
[Result "1/2-1/2"]
[ECO "C22"]
[WhiteElo "2190"]
[BlackElo "2130"]
[Annotator "RC"]
[PlyCount "59"]
[EventDate "2024.11.01"]
[EventType "swiss"]
[EventCountry "USA"]
[SourceTitle "playchess.com"]
[Source "ChessBase"]
[SourceQuality "1"]
[TimeControl "5400+30"]

1. e4 {[%emt 0:06:59]} e5 {[%emt 0:00:05]} 2. d4 {[%emt 0:00:30]} exd4 {[%emt 0:00:09]} 3. Qxd4 {[%emt 0:00:02]} Nc6 {[%emt 0:00:11]} 4. Qe3 {[%emt 0:00:07]} Nf6 {[%emt 0:00:17]} 5. Bb5 {[%emt 0:00:33]} a6 {[%emt 0:01:02]} 6. Bxc6 {[%emt 0:00:07]} dxc6 {[%emt 0:00:14]} 7. f3 {[%emt 0:00:26]} Bd6 {[%emt 0:03:19]} 8. Bd2 {[%emt 0:01:38]} O-O {[%emt 0:01:29]} 9. Nc3 {[%emt 0:00:22]} Re8 {[%emt 0:06:31]} 10. Nge2 {[%emt 0:06:07]} Nd5 {[%emt 0:03:05]} 11. Qf2 {[%emt 0:04:49]} Nxc3 {[%emt 0:00:19]} 12. Nxc3 {[%emt 0:00:31]} Qe7 {[%emt 0:03:37]} 13. O-O-O {[%emt 0:04:14]} Be6 {[%emt 0:00:28]} 14. f4 {[%emt 0:02:49]} f6 {[%emt 0:14:32]} 15. Rde1 {[%emt 0:04:06]} a5 {[%emt 0:08:17]} 16. Qf3 {[%emt 0:15:58]} Rad8 {[%emt 0:09:36]} 17. e5 {[%emt 0:16:32]} fxe5 {[%emt 0:00:51]} 18. fxe5 {[%emt 0:01:52]} Bb4 {[%emt 0:00:12]} 19. h4 {[%emt 0:03:49]} Rf8 {[%emt 0:06:43]} 20. Qg3 {[%emt 0:06:10]} Qf7 {[%emt 0:02:33]} 21. a3 {[%emt 0:01:49]} Bxc3 {[%emt 0:01:00]} 22. Qxc3 {[%emt 0:00:36]} Rd5 {[%emt 0:00:17]} 23. h5 {[%emt 0:05:19]} h6 {[%emt 0:01:40]} 24. g4 {[%emt 0:01:34]} Qf3 {[%emt 0:09:21]} 25. Qxf3 {[%emt 0:02:18]} Rxf3 {[%emt 0:00:01]} 26. g5 {[%emt 0:01:05]} Rf2 {[%emt 0:05:53]} 27. Be3 {[%emt 0:02:34]} Rg2 {[%emt 0:01:17]} 28. Rhg1 {[%emt 0:02:15]} Rxg1 {[%emt 0:00:17]} 29. Rxg1 {[%emt 0:00:01]} Rxe5 {[%emt 0:01:01]} 30. Kd2 {[%emt 0:00:20]} 1/2-1/2

[Event "Marshall CC FIDE Premier November 2024"]
[Site "New York"]
[Date "2024.11.03"]
[Round "3.2"]
[White "Chin, Spencer"]
[Black "Putnam, Liam"]
[Result "0-1"]
[ECO "E24"]
[WhiteElo "2035"]
[BlackElo "2388"]
[Annotator "TA"]
[PlyCount "88"]
[EventDate "2024.11.01"]
[EventType "swiss"]
[EventCountry "USA"]
[SourceTitle "playchess.com"]
[Source "ChessBase"]
[SourceQuality "1"]
[TimeControl "5400+30"]

{[%evp 11,88,-41,-8,-18,0,-16,-20,-19,-8,-20,-20,-31,-20,-22,-31,-29,0,0,0,0,130,0,267,280,310,54,62,73,61,64,55,55,53,0,2,0,0,0,0,0,0,0,-6,-15,0,-19,-21,-49,0,-13,0,0,0,-12,-11,-29,-9,-16,0,-22,-22,-64,-27,-87,-92,-101,-83,-86,-35,-29990,-29991,-29991,-29992,-29992,-29993,-29993,-29994,-29994,-29995]} 1. d4 {[%emt 0:00:04]} Nf6 {[%emt 0:05:47]} 2. c4 {[%emt 0:00:22]} e6 {[%emt 0:00:48]} 3. Nc3 {[%emt 0:00:34]} Bb4 {[%emt 0:00:02]} 4. f3 {[%emt 0:00:06]} c5 {[%emt 0:01:15]} 5. a3 {[%emt 0:00:05]} Bxc3+ {[%emt 0:01:18]} 6. bxc3 {[%emt 0:00:02]} O-O {[%emt 0:04:59]} 7. e4 {[%emt 0:10:40]} d6 {[%emt 0:01:59]} 8. Ne2 {[%emt 0:05:27]} Nc6 {[%emt 0:01:30]} 9. Bg5 {[%emt 0:00:39] The position is equal.} b6 {[%emt 0:05:14]} 10. Ng3 {[%emt 0:05:07]} h6 {[%emt 0:01:48]} 11. Be3 {[%emt 0:00:41]} Ba6 {[%emt 0:00:39]} 12. Bd3 {[%emt 0:02:47]} Na5 {[%emt 0:22:09]} 13. Qe2 {[%emt 0:02:46]} Qd7 {[%emt 0:00:46]} 14. O-O {[%emt 0:07:08]} Qa4 {[%emt 0:02:48][%cal Ra6c4]} 15. e5 {[%emt 0:06:57]} dxe5 {[%emt 0:01:02]} (15... Ne8 $11) 16. dxe5 {[%emt 0:00:19]} (16. Bxh6 $1 $16 Bxc4 (16... gxh6 17. Qxe5 Nd7 18. Qh5 $18) (16... exd4 17. Bxg7 Kxg7 18. Qe5 $18) 17. Bxg7 (17. dxe5 Bxd3 18. Qxd3 Nh7 $17) 17... Bxd3 (17... Kxg7 $2 18. Qxe5 Rfe8 19. Bxc4 $18) 18. Qxe5) 16... Nd7 $2 {[%emt 0:11:42][%mdl 8192] [#]} (16... Nh7 $1 $11 {and Black has nothing to worry.}) 17. Bxh6 $1 $18 {[%emt 0:02:18][%mdl 512]} Bxc4 {[%emt 0:03:01] [#]} 18. Qe4 {[%emt 0:03:42]} f5 $14 {[%emt 0:00:12] [#]} 19. exf6 $1 {[%emt 0:01:48]} Nxf6 {[%emt 0:00:06]} 20. Qg6 {[%emt 0:02:05]} Qd7 {[%emt 0:00:12]} 21. Bxc4 {[%emt 0:04:01]} Nxc4 {[%emt 0:00:05]} 22. Bg5 {[%emt 0:05:05]} (22. Rfe1 $1 $14) 22... Ne5 $132 {[%emt 0:06:47][%mdl 2048] Black is not holding back. Excellent horsemanship.} 23. Qc2 {[%emt 0:00:46]} Rad8 {[%emt 0:02:18]} 24. Rad1 {[%emt 0:02:25]} Nd3 $1 {[%emt 0:05:28]} 25. Ne4 {[%emt 0:06:49]} c4 {[%emt 0:00:14]} 26. Bxf6 {[%emt 0:01:43]} gxf6 {[%emt 0:00:03]} 27. Nf2 {[%emt 0:03:23]} Qd5 {[%emt 0:03:50]} 28. Nxd3 {[%emt 0:03:52]} cxd3 {[%emt 0:00:02]} 29. Qd2 {[%emt 0:00:32]} Rd7 {[%emt 0:03:15]} 30. Rfe1 {[%emt 0:02:18]} Rfd8 {[%emt 0:02:59]} (30... Kf7 {feels hotter.} 31. Qh6 Rg8 32. Qh7+ Rg7) 31. Qh6 {[%emt 0:09:14]} Qc5+ {[%emt 0:02:06]} 32. Kh1 {[%emt 0:00:34]} Qg5 {[%emt 0:01:30] Against Qg6+. Active counter play!} 33. Qh3 {[%emt 0:01:53]} (33. Qxg5+ {simplifies} fxg5 34. Rxe6 Rc7 35. Kg1) 33... f5 {[%emt 0:06:35] ...Rh7 is the strong threat.} 34. f4 {[%emt 0:06:01]} (34. Rxe6 {looks sharper.} Rh7 35. f4 Qxf4 36. Rg6+) 34... Qf6 {[%emt 0:02:12][%cal Od3d2]} 35. Re5 {[%emt 0:03:24]} d2 {[%emt 0:00:55]} 36. Qg3+ {[%emt 0:01:08]} Kf8 {[%emt 0:00:37] White must now prevent ...Rd3.} (36... Qg7 {with more complications.} 37. Qh4 Rd3 38. Rxe6 Qg4) 37. Qf2 {[%emt 0:00:10]} (37. Re3 $11 {keeps the balance.}) 37... Rd3 $17 {[%emt 0:00:43]} 38. h3 {[%emt 0:00:04]} Kf7 {[%emt 0:00:15][%cal Of6h6]} (38... Rxc3 39. Rxd2 Rc6 40. Re3 $14) 39. Qe2 {[%emt 0:00:47]} Qh4 {[%emt 0:00:34]} (39... Rxc3 $6 40. Rxd2 Rxd2 41. Qxd2 Rxa3 42. Qc2 $11) ({Better is} 39... R8d6 $17 {[%cal Of6d8]} 40. Qf2 Qd8 (40... Rxc3 41. Rxd2 Rxd2 42. Qxd2 $11)) 40. Rxe6 $2 {[%emt 0:00:55][%mdl 8192] [#]} (40. Re3 $15 R3d6 41. Qf3) 40... Rxh3+ $1 {[%emt 0:00:31][%mdl 512] Black mates.} 41. gxh3 {[%emt 0:00:16]} Qxh3+ {[%emt 0:00:03]} 42. Qh2 {[%emt 0:01:24]} Qf3+ {[%emt 0:00:04]} (42... Qxc3 43. Rh6 (43. Re2 Rh8 $17) 43... Qf3+ (43... Qxa3 44. Qh5+ Ke7 45. Qg5+ Kd7 46. Qg7+ Qe7 47. Rxd2+ Kc8 48. Qxe7 Rg8 49. Qxa7) 44. Qg2 $18) 43. Qg2 {[%emt 0:00:05]} Qxd1+ {[%emt 0:00:03]} 44. Kh2 {[%emt 0:00:04]} Qh5+ {[%emt 0:00:07] Quite a comeback for Black.   Weighted Error Value: White=0.33/Black=0.25 (precise) .  Loses game:     	White=1     	Black=1      Missed win:     	White=1     	---        Mistake:       	White=3     	Black=2      Inaccurate:     	White=2     	Black=3      OK:         	White=10    	Black=10     Best:        	White=2     	Black=1      Strong:       	White=1     	Black=1      Brilliant:      	White=1     	Black=1} 0-1

[Event "Marshall CC FIDE Premier November 2024"]
[Site "New York"]
[Date "2024.11.03"]
[Round "3.3"]
[White "Muthukumar, Haari"]
[Black "Levine, Owen"]
[Result "1-0"]
[ECO "B90"]
[WhiteElo "2168"]
[BlackElo "1998"]
[Annotator "RC"]
[PlyCount "71"]
[EventDate "2024.11.01"]
[EventType "swiss"]
[EventCountry "USA"]
[SourceTitle "playchess.com"]
[Source "ChessBase"]
[SourceQuality "1"]
[TimeControl "5400+30"]

1. e4 {[%emt 0:00:04]} c5 {[%emt 0:00:08]} 2. Nf3 {[%emt 0:00:14]} d6 {[%emt 0:00:11]} 3. d4 {[%emt 0:00:04]} cxd4 {[%emt 0:00:14]} 4. Nxd4 {[%emt 0:00:03]} Nf6 {[%emt 0:00:11]} 5. Nc3 {[%emt 0:00:03]} a6 {[%emt 0:00:09]} 6. Nb3 {[%emt 0:00:31]} e6 {[%emt 0:05:18]} 7. g4 {[%emt 0:00:30]} h6 {[%emt 0:01:45]} 8. h4 {[%emt 0:00:12]} Nc6 {[%emt 0:05:46]} 9. Bg2 {[%emt 0:03:33]} Be7 {[%emt 0:07:27]} 10. g5 {[%emt 0:01:45]} hxg5 {[%emt 0:03:32]} 11. hxg5 {[%emt 0:00:45]} Rxh1+ {[%emt 0:00:12]} 12. Bxh1 {[%emt 0:00:04]} Nd7 {[%emt 0:00:21]} 13. Qh5 {[%emt 0:03:30]} Nf8 {[%emt 0:04:12]} 14. Be3 {[%emt 0:03:04]} Ne5 {[%emt 0:02:52]} 15. Nd2 {[%emt 0:03:57]} b5 {[%emt 0:06:50]} 16. f4 {[%emt 0:04:52]} Nc4 {[%emt 0:01:10]} 17. Nxc4 {[%emt 0:00:05]} bxc4 {[%emt 0:00:09]} 18. O-O-O {[%emt 0:10:08]} Rb8 {[%emt 0:02:46]} 19. Qh8 {[%emt 0:04:40]} g6 {[%emt 0:12:30]} 20. Bd4 {[%emt 0:09:18]} Qa5 {[%emt 0:04:31]} 21. Kb1 {[%emt 0:02:17]} Qb4 {[%emt 0:09:52]} 22. Ne2 {[%emt 0:00:51]} Bd7 {[%emt 0:10:58]} 23. Bf3 {[%emt 0:01:45]} a5 {[%emt 0:01:37]} 24. Bc3 {[%emt 0:00:34]} Qb6 {[%emt 0:00:15]} 25. Bd4 {[%emt 0:00:43]} Qb5 {[%emt 0:02:50]} 26. Bc3 {[%emt 0:05:12]} a4 {[%emt 0:04:01]} 27. a3 {[%emt 0:03:01]} Qc5 {[%emt 0:06:21]} 28. Bb4 {[%emt 0:01:30]} Qe3 {[%emt 0:02:24]} 29. Qc3 {[%emt 0:01:04]} Qxc3 {[%emt 0:00:05]} 30. Nxc3 {[%emt 0:00:08]} Rb6 {[%emt 0:00:17]} 31. Be2 {[%emt 0:00:47]} e5 {[%emt 0:00:55]} 32. Nd5 {[%emt 0:05:30]} Rc6 {[%emt 0:00:06]} 33. Nxe7 {[%emt 0:00:37]} Kxe7 {[%emt 0:00:09]} 34. fxe5 {[%emt 0:00:04]} Ke8 {[%emt 0:00:27]} 35. exd6 {[%emt 0:01:16]} Ne6 {[%emt 0:00:10]} 36. Rh1 {[%emt 0:00:09]} 1-0